bitfinex-derivatives/quotes_ETHF0:USTF0_20250428
["timestamp","ask_amount","ask_price","bid_price","bid_amount"]
[1745816893149,1.7163,1789.6,1789.5,47.08849]
[1745816893950,8.516,1789.7,1789.5,46.3064]
[1745816894149,8.516,1789.7,1789.6,0.78204]
[1745816894546,8.516,1789.7,1789.6,2.48644]
[1745816896753,3.2078,1789.7,1789.6,2.48644]
[1745816897445,4.9025,1789.7,1789.6,2.48644]
[1745816897652,4.9025,1789.7,1789.6,43.28644]
[1745816898450,4.9025,1789.7,1789.6,41.58204]
[1745816898655,5.6845,1789.7,1789.6,40.8]
[1745816899559,4.9025,1789.7,1789.6,41.58204]
[1745816900355,4.9025,1789.7,1789.6,42.39644]
[1745816900654,4.9025,1789.7,1789.6,44.12924]
[1745816901655,0.7929,1789.8,1789.7,0.782]
[1745816901855,5.7858,1789.9,1789.8,0.78195]
[1745816902055,2.578,1789.9,1789.8,2.49335]
[1745816902557,5.7858,1789.9,1789.8,2.49335]
[1745816905163,5.7858,1789.9,1789.8,2.49335]
[1745816905459,6.56771,1789.9,1789.8,2.49335]
[1745816905660,6.56771,1789.9,1789.8,1.7114]
[1745816905855,6.56771,1789.9,1789.7,0.8054]
[1745816906058,1.7487,1789.8,1789.7,3.3099]
[1745816906253,4.4656,1790.0,1789.7,2.5279]
[1745816906254,0.8516,1790.0,1789.7,2.5279]
[1745816906457,0.8516,1790.0,1789.9,0.78191]
[1745816907559,0.8516,1790.0,1789.9,1.58191]
[1745816908661,3.24187,1790.0,1789.9,0.8]
[1745816908963,2.46,1790.0,1789.9,1.58191]
[1745816909761,4.0658,1790.1,1790.0,0.78187]
[1745816909965,5.6742,1790.1,1790.0,0.78187]
[1745816911255,5.6742,1790.1,1790.0,2.37977]
[1745816911658,2.4664,1790.1,1790.0,2.37977]
[1745816912157,5.6742,1790.1,1790.0,2.37977]
[1745816914364,5.6742,1790.1,1790.0,0.78187]
[1745816914560,2.4664,1790.1,1790.0,0.78187]
[1745816916460,2.4664,1790.1,1790.0,2.40187]
[1745816917067,2.4664,1790.1,1790.0,3.24867]
[1745816918064,0.8089,1790.2,1790.1,0.78182]
[1745816918368,0.8089,1790.2,1790.1,2.40182]
[1745816918667,2.5458,1790.2,1790.1,2.40182]
[1745816921167,3.612,1790.3,1790.2,0.78178]
[1745816921368,6.2838,1790.4,1790.3,0.78174]
[1745816921564,5.4677,1790.4,1790.3,0.78174]
[1745816921768,5.4677,1790.4,1790.3,1.57274]
[1745816922069,5.4677,1790.4,1790.3,3.20534]
[1745816922660,3.802,1790.4,1790.3,3.20534]
[1745816923162,3.2078,1790.5,1790.4,0.78169]
[1745816923469,3.2078,1790.5,1790.4,2.41859]
[1745816924759,4.7882,1790.5,1790.4,0.78169]
[1745816925167,8.5902,1790.5,1790.4,0.78169]
[1745816936871,8.5902,1790.5,1790.4,1.62459]
[1745816937964,5.3824,1790.5,1790.4,1.62459]
[1745816940271,5.3824,1790.5,1790.4,0.78169]
[1745816940474,10.3824,1790.5,1789.9,3.2078]
[1745816940679,3.98956,1790.3,1790.1,0.78181]
[1745816940972,3.4155,1790.2,1790.1,0.78181]
[1745816941866,3.802,1790.3,1790.2,0.78178]
[1745816942466,5.5281,1790.3,1790.2,0.78178]
[1745816943165,3.802,1790.3,1790.2,0.78178]
[1745816943471,3.2078,1790.7,1790.5,0.78161]
[1745816943472,3.4155,1790.7,1790.5,0.78161]
[1745816943667,1.7176,1790.6,1790.4,0.78166]
[1745816943867,1.7176,1790.6,1790.4,2.36936]
[1745816944274,5.5196,1790.6,1790.5,0.78165]
[1745816945268,5.5196,1790.6,1790.4,2.36937]
[1745816945568,3.802,1790.6,1790.4,2.36937]
[1745816946767,3.802,1790.6,1790.5,0.78165]
[1745816946971,3.802,1790.6,1790.5,3.26755]
[1745816947872,3.802,1790.6,1790.5,44.06755]
[1745816950179,4.8972,1790.7,1790.5,44.06755]
[1745816950180,8.6992,1790.7,1790.5,44.06755]
[1745816950571,8.6992,1790.7,1790.6,0.78161]
[1745816951979,10.4226,1790.7,1790.6,0.78161]
[1745816952480,10.4226,1790.7,1790.5,43.26532]
[1745816952777,1.7234,1790.6,1790.5,41.58162]
[1745816953177,5.5254,1790.6,1790.5,41.58162]
[1745816959477,3.802,1790.6,1790.5,41.58162]
[1745816961082,5.67877,1790.7,1790.5,41.58162]
[1745816962186,9.48077,1790.7,1790.5,41.58162]
[1745816962576,1.5965,1790.6,1790.5,41.58162]
[1745816963281,5.3985,1790.6,1790.5,41.58162]
[1745816964283,5.3985,1790.6,1790.5,42.45662]
[1745816964789,6.18011,1790.6,1790.5,40.8]
[1745816967384,5.3985,1790.6,1790.5,41.58165]
[1745816968087,6.18011,1790.6,1790.5,41.58165]
[1745816973300,6.18011,1790.6,1790.5,40.8]
[1745816978803,3.802,1790.6,1790.5,41.58165]
[1745816979101,0.78161,1790.6,1790.5,44.19115]
[1745816980102,4.58361,1790.6,1790.5,44.19115]
[1745816980905,6.26151,1790.6,1790.5,44.19115]
[1745816982706,6.26151,1790.6,1790.5,42.5364]
[1745816982899,7.08991,1790.6,1790.5,42.5364]
[1745816986105,7.08991,1790.6,1790.5,40.8]
[1745816986999,4.58361,1790.6,1790.5,40.8]
[1745816987500,6.30301,1790.6,1790.5,42.4767]
[1745816987700,6.30301,1790.6,1790.5,43.25835]
[1745816988708,6.30301,1790.6,1790.5,42.4767]
[1745816989315,6.30301,1790.6,1790.5,43.25835]
[1745816990309,3.802,1790.6,1790.5,43.25835]
[1745816994308,4.58361,1790.6,1790.5,43.25835]
[1745817000815,4.58361,1790.6,1790.5,42.4767]
[1745817001015,6.32381,1790.6,1790.5,42.4767]
[1745817001206,5.5422,1790.6,1790.5,44.12855]
[1745817001407,3.802,1790.6,1790.5,44.12855]
[1745817002018,4.58361,1790.6,1790.5,44.12855]
[1745817002214,3.802,1790.6,1790.5,44.12855]
[1745817004317,14.91559577,1790.8,1790.5,49.12855]
[1745817004509,14.91559577,1790.8,1790.7,0.78156]
[1745817005005,14.91559577,1790.8,1790.7,3.27096]
[1745817005209,18.71759577,1790.8,1790.7,3.27096]
[1745817006917,20.32829577,1790.8,1790.7,3.27096]
[1745817008112,6.19422,1790.8,1790.7,2.4894]
[1745817008318,6.19422,1790.8,1790.7,3.27096]
[1745817009722,5.4127,1790.8,1790.7,3.27096]
[1745817010418,6.19422,1790.8,1790.6,0.8258]
[1745817010718,6.19422,1790.8,1790.6,1.60738]
[1745817010719,1.5926,1790.7,1790.6,1.60738]
[1745817010917,2.4458,1790.7,1790.6,0.78158]
[1745817011118,5.3946,1790.7,1790.6,3.28078]
[1745817012522,5.3946,1790.7,1790.6,2.46888]
[1745817012721,6.2478,1790.7,1790.6,2.46888]
[1745817014417,5.3946,1790.7,1790.6,2.46888]
[1745817016427,3.802,1790.7,1790.6,2.46888]
[1745817017225,18.98109577,1791.1,1791.0,0.78143]
[1745817017427,6.5385,1791.1,1791.0,0.78143]
[1745817017725,3.3307,1791.1,1791.0,0.78143]
[1745817018122,7.1327,1791.1,1791.0,0.78143]
[1745817019629,7.91409,1791.1,1791.0,0.78143]
[1745817020121,7.1327,1791.1,1791.0,0.78143]
[1745817021029,7.1327,1791.1,1791.0,2.39223]
[1745817021222,5.4626,1791.1,1791.0,3.19983]
[1745817021423,0.41747903,1791.1,1791.0,8.19983]
[1745817021630,0.41747903,1791.1,1791.0,11.80683]
[1745817022129,0.8139,1791.4,1791.3,0.7813]
[1745817022821,2.4795,1791.4,1791.3,0.7813]
[1745817023021,2.4795,1791.4,1791.3,41.5813]
[1745817023227,2.4795,1791.4,1791.3,43.2037]
[1745817024129,6.2815,1791.4,1791.3,43.2037]
[1745817026225,2.4795,1791.4,1791.3,43.2037]
[1745817026724,2.48382413,1791.4,1791.3,43.2037]
[1745817028133,6.28582413,1791.4,1791.3,43.2037]
[1745817029336,7.06708413,1791.4,1791.3,40.8]
[1745817030223,7.06708413,1791.4,1791.3,41.5813]
[1745817030832,7.06708413,1791.4,1791.3,40.8]
[1745817046544,3.80632413,1791.4,1791.3,41.5813]
[1745817046753,3.80632413,1791.4,1791.3,44.8822]
[1745817047245,4.58758413,1791.4,1791.3,44.8822]
[1745817047547,3.80632413,1791.4,1791.3,44.8822]
[1745817048150,0.00432413,1791.4,1791.3,44.8822]
[1745817049145,4.58758413,1791.4,1791.3,44.1009]
[1745817049348,7.08588413,1791.4,1791.3,43.2418]
[1745817050947,7.08588413,1791.4,1791.3,44.0231]
[1745817053153,3.80632413,1791.4,1791.3,44.0231]
[1745817054152,0.00432413,1791.4,1791.3,44.0231]
[1745817054944,1.69702413,1791.4,1791.3,44.0231]
[1745817055251,3.80632413,1791.4,1791.3,44.0231]
[1745817057353,0.00432413,1791.4,1791.3,44.0231]
[1745817061256,3.80632413,1791.4,1791.3,44.0231]
[1745817062150,0.00432413,1791.4,1791.3,44.0231]
[1745817062560,4.13e-06,1791.4,1791.3,52.2309]
[1745817063059,15.55940937,1791.8,1791.7,0.78113]
[1745817063361,15.55940937,1791.8,1791.7,7.59293]
[1745817063552,15.55940937,1791.8,1791.7,12.59293]
[1745817064163,14.46189937,1791.8,1791.7,12.59293]
[1745817064457,13.47661937,1791.8,1791.7,14.28453]
[1745817064656,13.47661937,1791.8,1791.7,55.08453]
[1745817065256,17.27861937,1791.8,1791.7,46.48053]
[1745817065565,3.802,1791.8,1791.7,50.08353]
[1745817066263,2.4639,1792.1,1792.0,0.78099]
[1745817066560,1.6626,1792.1,1792.0,0.78099]
[1745817066965,1.6626,1792.1,1791.9,1.6798]
[1745817066966,4.8365,1792.3,1792.2,0.78091]
[1745817067264,10.3011,1792.3,1792.2,0.78091]
[1745817067563,10.3011,1792.3,1792.1,0.78092]
[1745817067756,1.6626,1792.2,1792.1,0.78092]
[1745817069272,5.4646,1792.2,1792.1,0.78092]
[1745817069766,3.802,1792.2,1792.1,0.78092]
[1745817070065,5.4594,1792.2,1792.1,0.78092]
[1745817072380,3.802,1792.2,1792.1,3.98872]
[1745817072581,2.97174,1792.2,1792.1,3.98872]
[1745817072781,2.97174,1792.2,1792.1,5.70312]
[1745817075484,2.97174,1792.2,1792.1,0.78092]
[1745817076681,4.61254,1792.2,1792.1,0.78092]
[1745817080778,4.61254,1792.2,1792.1,2.42242]
[1745817083677,2.13866,1792.2,1792.1,2.42242]
[1745817083884,1.20041,1792.2,1792.1,2.42242]
[1745817084078,0.40838,1792.2,1792.1,2.42242]
[1745817084278,1.7244,1792.5,1792.4,0.78082]
[1745817085076,1.7244,1792.5,1792.4,2.41212]
[1745817085286,5.5264,1792.5,1792.4,2.41212]
[1745817087087,3.802,1792.5,1792.4,2.41212]
[1745817087789,5.5125,1792.5,1792.4,2.41212]
[1745817088891,5.5125,1792.5,1792.4,0.78082]
[1745817094893,3.802,1792.5,1792.4,0.78082]
[1745817095093,3.802,1792.5,1792.4,3.98862]
[1745817095293,2.95637,1792.5,1792.4,8.98862]
[1745817095487,2.01208,1792.5,1792.4,8.98862]
[1745817095691,2.01208,1792.5,1792.4,49.78862]
[1745817096195,2.01208,1792.5,1792.4,44.78862]
[1745817097095,1.14914,1792.5,1792.4,44.78862]
[1745817097296,1.14914,1792.5,1792.4,46.42552]
[1745817098189,1e-05,1792.5,1792.4,51.42552]
[1745817100897,1e-05,1792.5,1792.4,46.42552]
[1745817102094,3.802,1792.5,1792.4,46.42552]
[1745817102294,3.802,1792.5,1792.4,50.02652]
[1745817103095,3.802,1792.5,1792.4,46.42552]
[1745817103397,1.93714,1792.5,1792.4,50.02652]
[1745817103992,1.09927,1792.5,1792.4,50.02652]
[1745817104198,1e-05,1792.5,1792.4,50.02652]
[1745817110400,1.6276,1792.8,1792.7,0.78069]
[1745817111200,5.4296,1792.8,1792.7,0.78069]
[1745817111701,1.36637,1792.8,1792.7,4.38069]
[1745817112005,3.2379,1793.2,1793.1,0.78052]
[1745817112398,8.2379,1793.2,1793.1,0.78052]
[1745817113705,8.24157285,1793.2,1793.1,0.78052]
[1745817113903,3.24157285,1793.2,1793.1,0.78052]
[1745817115900,8.24157285,1793.2,1793.1,0.78052]
[1745817119005,14.12957285,1793.2,1793.1,0.78052]
[1745817121908,9.12957285,1793.2,1793.1,0.78052]
[1745817122209,3.24157285,1793.2,1793.1,0.78052]
[1745817125007,3.24157285,1793.2,1792.9,0.78058]
[1745817125211,1.7225,1793.1,1792.9,0.78058]
[1745817126307,1.7225,1793.1,1793.0,0.78056]
[1745817126509,1.7225,1793.1,1792.9,0.78057]
[1745817128511,1.7225,1793.1,1792.9,0.78058]
[1745817129102,2.50302,1793.1,1792.8,0.78062]
[1745817129510,1.7079,1793.0,1792.8,0.78062]
[1745817129708,0.8578,1792.9,1792.8,0.78062]
[1745817129911,1.6911,1792.9,1792.8,0.78062]
[1745817130410,2.47172,1792.9,1792.5,9.23795]
[1745817130610,1.7079,1792.8,1792.5,9.23795]
[1745817130803,1.7079,1792.8,1792.6,0.78073]
[1745817131902,0.78073,1792.6,1792.4,40.8]
[1745817132099,4.9157,1792.8,1792.4,40.8]
[1745817132302,1.6567,1792.7,1792.5,2.48386]
[1745817132505,1.6567,1792.7,1792.5,3.27486]
[1745817132813,1.6567,1792.7,1792.6,1.7031]
[1745817134006,1.6567,1792.7,1792.6,2.48383]
[1745817134607,1.6567,1792.7,1792.6,3.28843]
[1745817134807,3.2078,1792.8,1792.7,0.78069]
[1745817135017,4.8645,1792.8,1792.7,2.48379]
[1745817135418,4.8645,1792.8,1792.7,1.7031]
[1745817136115,5.64515,1792.8,1792.7,1.7031]
[1745817136312,4.8645,1792.8,1792.6,0.8046]
[1745817136510,1.6055,1792.7,1792.6,3.1712]
[1745817139412,1.6911,1792.9,1792.8,0.78065]
[1745817139615,3.4292,1792.9,1792.8,0.78065]
[1745817140617,3.4292,1792.9,1792.8,2.36995]
[1745817144117,3.4292,1792.9,1792.8,0.78065]
[1745817145827,3.4292,1792.9,1792.8,2.48095]
[1745817149629,3.4292,1792.9,1792.8,0.78065]
[1745817150538,3.4292,1792.9,1792.7,3.23096]
[1745817150735,1.6133,1792.8,1792.7,3.23096]
[1745817152540,1.6133,1792.8,1792.7,0.78066]
[1745817153636,8.56496,1792.8,1792.3,3.2078]
[1745817153837,0.78104,1791.9,1791.8,7.46230895]
[1745817154033,3.98884,1791.9,1791.8,7.46230895]
[1745817154237,8.98884,1791.9,1791.8,6.42470895]
[1745817154433,10.65644,1791.9,1791.8,6.42470895]
[1745817154635,10.65644,1791.9,1791.8,5.56718895]
[1745817155234,10.74834136,1791.9,1791.8,5.56718895]
[1745817155434,11.09108079,1791.9,1791.8,5.56718895]
[1745817155636,11.18298273,1791.9,1791.8,5.56718895]
[1745817156137,0.78113,1791.7,1791.6,40.8]
[1745817156334,4.42357079,1791.7,1791.6,40.8]
[1745817158143,3.64244079,1791.7,1791.6,40.8]
[1745817158643,6.12224079,1791.7,1791.6,40.8]
[1745817159235,6.90210149,1791.7,1791.6,40.8]
[1745817161237,6.9015921,1791.7,1791.6,40.8]
[1745817163246,6.90114711,1791.7,1791.6,40.8]
[1745817163445,10.50214711,1791.7,1791.6,40.8]
[1745817165139,10.50183678,1791.7,1791.6,40.8]
[1745817166947,10.50162318,1791.7,1791.6,40.8]
[1745817167445,0.78126,1791.4,1791.3,1.6806]
[1745817167745,4.42095318,1791.4,1791.3,42.4806]
[1745817167947,4.42095318,1791.4,1791.3,40.8]
[1745817168747,4.42075235,1791.4,1791.3,40.8]
[1745817170538,4.4206178,1791.4,1791.3,40.8]
[1745817171343,4.42063807,1791.4,1791.3,40.8]
[1745817172540,4.42073444,1791.4,1791.3,40.8]
[1745817173345,3.98906,1791.4,1791.3,40.8]
[1745817173646,4.42084272,1791.4,1791.3,40.8]
[1745817175938,5.24884272,1791.4,1791.3,40.8]
[1745817178246,4.81706,1791.4,1791.3,40.8]
[1745817179052,5.24985901,1791.4,1791.3,40.8]
[1745817179552,5.25007215,1791.4,1791.3,40.8]
[1745817179742,4.81706,1791.4,1791.3,40.8]
[1745817179947,5.25006563,1791.4,1791.3,40.8]
[1745817180548,5.25047578,1791.4,1791.3,40.8]
[1745817181150,4.81706,1791.4,1791.3,40.8]
[1745817181448,5.25046713,1791.4,1791.3,40.8]
[1745817182850,8.86846713,1791.4,1791.3,40.8]
[1745817184156,8.87099028,1791.4,1791.3,40.8]
[1745817184347,10.58629028,1791.4,1791.3,40.8]
[1745817186057,10.58628992,1791.4,1791.3,40.8]
[1745817187859,6.96828992,1791.4,1791.3,40.8]
[1745817188062,10.58628992,1791.4,1791.3,40.8]
[1745817189856,10.15036,1791.4,1791.3,40.8]
[1745817190063,10.58650095,1791.4,1791.3,40.8]
[1745817194066,0.7813,1791.3,1791.2,1.7303]
[1745817194266,2.91974095,1791.3,1791.2,1.7303]
[1745817195169,2.91974095,1791.3,1791.2,42.5303]
[1745817195771,6.12773811,1791.3,1791.2,42.5303]
[1745817198673,2.91993811,1791.3,1791.2,42.5303]
[1745817198868,6.12773811,1791.3,1791.2,42.5303]
[1745817200574,0.78139,1791.1,1791.0,1.7316]
[1745817200875,4.42552811,1791.1,1791.0,1.7316]
[1745817201075,4.42552811,1791.1,1791.0,42.5316]
[1745817201368,4.42557992,1791.1,1791.0,42.5316]
[1745817202562,5.22877992,1791.1,1791.0,42.5316]
[1745817202972,0.78147,1790.9,1790.8,1.5763]
[1745817203275,4.42525856,1790.9,1790.8,1.5763]
[1745817203669,6.05865856,1790.9,1790.8,1.5763]
[1745817204979,0.78156,1790.7,1790.6,41.5952]
[1745817205171,4.42534856,1790.7,1790.6,43.3041]
[1745817206779,6.10814856,1790.7,1790.6,43.3041]
[1745817206976,0.78161,1790.6,1790.5,0.861]
[1745817207180,1.21759856,1790.6,1790.5,0.861]
[1745817207479,1.21759856,1790.6,1790.5,41.661]
[1745817208972,1.21759856,1790.6,1790.5,43.2806]
[1745817212884,1.21601765,1790.6,1790.5,43.2806]
[1745817214881,1.21596746,1790.6,1790.5,43.2806]
[1745817216773,0.78161,1790.6,1790.5,43.2806]
[1745817216978,1.21602977,1790.6,1790.5,43.2806]
[1745817218686,1.2160988,1790.6,1790.5,43.2806]
[1745817218887,2.9459988,1790.6,1790.5,43.2806]
[1745817222492,2.94611359,1790.6,1790.5,43.2806]
[1745817222787,2.94611359,1790.6,1790.5,40.8]
[1745817224388,2.94627582,1790.6,1790.5,40.8]
[1745817224687,2.94627582,1790.6,1790.5,42.4282]
[1745817224889,2.94627582,1790.6,1790.5,40.8]
[1745817225995,2.94627582,1790.6,1790.5,42.4282]
[1745817226485,2.94635793,1790.6,1790.5,42.4282]
[1745817229698,1.95413,1790.5,1790.0,3.2078]
[1745817230008,1.95413,1790.5,1789.1,11.29069742]
[1745817230009,0.78187,1790.0,1789.9,3.2786]
[1745817230197,1.21671793,1790.0,1789.9,44.0786]
[1745817231494,0.43484793,1790.0,1789.9,49.86051]
[1745817232193,0.43484793,1790.0,1789.9,53.66251]
[1745817233206,4.38571,1790.4,1790.2,0.78176]
[1745817233404,4.38571,1790.4,1790.3,3.225]
[1745817233604,0.78171,1790.4,1790.3,3.225]
[1745817239108,0.78171,1790.4,1790.3,7.027]
[1745817239408,3.2078,1790.5,1790.3,7.80872]
[1745817239409,3.98948,1790.5,1790.3,7.80872]
[1745817239604,0.78168,1790.5,1790.4,1.7114]
[1745817242102,2.48353,1790.6,1790.4,1.7114]
[1745817243001,0.78165,1790.5,1790.4,2.49308]
[1745817244712,0.78165,1790.5,1790.4,1.7114]
[1745817245115,1.21064215,1790.5,1790.4,1.7114]
[1745817246304,1.21064215,1790.5,1790.3,1.6019]
[1745817246305,0.78169,1790.4,1790.3,1.6019]
[1745817246607,0.78174,1790.3,1790.2,2.43448]
[1745817246910,0.42899215,1790.3,1790.2,2.43448]
[1745817247809,1.21073215,1790.3,1790.2,2.43448]
[1745817248213,1.21077871,1790.3,1790.2,2.43448]
[1745817248913,1.21077281,1790.3,1790.2,1.6527]
[1745817249612,1.21074072,1790.3,1790.2,1.6527]
[1745817250411,2.87244072,1790.3,1790.2,1.6527]
[1745817252112,0.78181,1790.2,1790.0,4.19176]
[1745817252318,0.78181,1790.2,1790.1,2.48492]
[1745817252518,1.21056796,1790.2,1790.1,2.48492]
[1745817252816,1.21056725,1790.2,1790.1,2.48492]
[1745817254018,1.21056725,1790.2,1790.1,1.7031]
[1745817254517,1.21057532,1790.2,1790.1,1.7031]
[1745817255713,0.42876532,1790.2,1790.1,2.48492]
[1745817256416,0.42885986,1790.2,1790.1,2.48492]
[1745817258422,0.4288478,1790.2,1790.1,2.48492]
[1745817260322,0.42888856,1790.2,1790.1,2.48492]
[1745817261826,0.42927163,1790.2,1790.1,2.48492]
[1745817262125,2.01937163,1790.2,1790.1,2.48492]
[1745817264228,2.01923382,1790.2,1790.1,2.48492]
[1745817266130,2.01921172,1790.2,1790.1,2.48492]
[1745817267834,1.5901,1790.2,1790.1,2.48492]
[1745817268147,2.01924655,1790.2,1790.1,2.48492]
[1745817270334,2.80102655,1790.2,1790.1,2.48492]
[1745817271336,2.80102655,1790.2,1790.0,6.29063]
[1745817271526,2.086447,1790.1,1790.0,7.92493]
[1745817271727,2.86825344,1790.1,1790.0,7.1431]
[1745817272033,3.70825344,1790.1,1790.0,7.92497]
[1745817272735,2.92643344,1790.1,1790.0,7.92497]
[1745817275636,2.92651174,1790.1,1790.0,7.92497]
[1745817277030,0.42971174,1790.1,1790.0,7.92497]
[1745817281429,1.6976,1790.2,1790.1,0.78182]
[1745817281632,2.1267068,1790.2,1790.1,2.46582]
[1745817283437,2.12671438,1790.2,1790.1,2.46582]
[1745817284633,0.42911438,1790.2,1790.1,2.46582]
[1745817288245,0.42911438,1790.2,1790.1,5.67362]
[1745817289046,9.0958,1790.6,1790.5,0.78165]
[1745817289449,3.2078,1790.6,1790.5,0.78165]
[1745817290248,3.2078,1790.6,1790.5,4.58365]
[1745817293249,1.6522,1790.7,1790.6,0.78161]
[1745817293552,3.2078,1791.0,1790.6,3.60603]
[1745817293758,3.3705,1791.1,1790.9,0.78147]
[1745817293955,3.3705,1791.1,1791.0,0.78143]
[1745817294160,1.6368,1791.1,1791.0,40.8]
[1745817294549,1.6368,1791.1,1791.0,41.58143]
[1745817299562,3.603,1791.3,1791.2,0.78134]
[1745817299857,5.2325,1791.3,1791.2,0.78134]
[1745817300158,1.6295,1791.3,1791.2,0.78134]
[1745817300862,3.2078,1791.4,1791.3,0.7813]
[1745817301060,4.0488,1791.4,1791.3,0.7813]
[1745817301262,0.841,1791.4,1791.3,4.5833]
[1745817301761,0.841,1791.4,1791.3,6.298]
[1745817302055,19.89443524,1791.8,1791.7,0.78113]
[1745817302258,21.57443524,1791.8,1791.7,0.78113]
[1745817302558,0.78116,1791.7,1791.4,3.33133]
[1745817302763,0.78115,1791.7,1791.5,0.7812]
[1745817305450,0.78115,1791.7,1791.4,0.78123]
[1745817305659,0.78115,1791.7,1791.5,0.7812]
[1745817305959,1.5984,1791.6,1791.5,0.7812]
[1745817310958,4.8878,1791.8,1791.7,0.78113]
[1745817311155,6.6128,1791.8,1791.7,0.78113]
[1745817312360,5.7738,1791.8,1791.7,0.78113]
[1745817312560,4.9328,1791.8,1791.7,0.78113]
[1745817313162,4.9328,1791.8,1791.7,4.58313]
[1745817313659,1.725,1791.8,1791.7,4.58313]
[1745817315259,1.725,1791.8,1791.7,0.78113]
[1745817319460,1.725,1791.8,1791.2,3.2078]
[1745817319656,3.98895,1791.7,1791.5,0.7812]
[1745817319855,2.4191,1791.6,1791.5,0.7812]
[1745817320066,3.262,1791.6,1791.5,0.7812]
[1745817322270,3.262,1791.6,1791.1,1.6696]
[1745817322271,8.262,1791.6,1791.1,1.6696]
[1745817322463,4.8794,1791.5,1791.4,0.78122]
[1745817323969,4.8794,1791.5,1791.3,0.78127]
[1745817324269,1.6535,1791.4,1791.3,0.78127]
[1745817324469,1.6535,1791.4,1791.1,0.8622]
[1745817324657,3.2078,1791.2,1791.1,0.78136]
[1745817325062,4.8613,1791.2,1791.1,0.78136]
[1745817326166,4.8613,1791.2,1791.1,2.49946]
[1745817326367,4.8613,1791.2,1791.1,3.31076]
[1745817328966,0.78139,1791.1,1791.0,3.802]
[1745817329267,0.78149,1790.9,1790.7,2.39164]
[1745817329467,1.5917,1790.8,1790.7,2.39164]
[1745817329972,1.5917,1790.8,1790.7,43.19164]
[1745817330367,1.5917,1790.8,1790.7,41.58156]
[1745817333370,0.78168,1790.5,1790.2,0.78175]
[1745817333574,1.6297,1790.4,1790.1,3.3229]
[1745817333768,3.3592,1790.4,1790.3,0.78172]
[1745817334073,4.14089,1790.4,1790.1,1.6755]
[1745817334268,2.41145,1790.3,1790.1,0.78179]
[1745817334466,1.6297,1790.2,1790.1,0.78179]
[1745817335381,1.6297,1790.2,1790.1,0.78182]
[1745817335569,1.6297,1790.2,1790.0,2.42924]
[1745817336075,1.6297,1790.2,1790.1,0.78182]
[1745817336378,1.6297,1790.2,1790.0,2.42923]
[1745817336680,1.6297,1790.2,1790.0,2.42924]
[1745817336976,2.41148,1790.2,1790.0,1.6474]
[1745817337178,1.6297,1790.2,1790.0,2.42926]
[1745817338477,2.41149,1790.2,1790.0,2.42926]
[1745817339180,2.41149,1790.2,1790.0,6.23126]
[1745817339776,1.6297,1790.2,1790.1,0.78182]
[1745817339976,1.6297,1790.2,1790.1,2.52082]
[1745817343186,3.2078,1790.3,1790.2,0.78178]
[1745817343482,3.2078,1790.3,1790.2,3.32238]
[1745817344385,3.2078,1790.3,1790.2,7.12438]
[1745817345084,3.2078,1790.3,1790.2,3.32238]
[1745817346179,3.2078,1790.3,1790.2,7.12438]
[1745817346383,3.602,1790.7,1790.2,7.12438]
[1745817346384,4.3836,1790.7,1790.2,8.29705]
[1745817346573,6.7913,1790.7,1790.6,0.78161]
[1745817347184,7.57286,1790.7,1790.5,0.78162]
[1745817347387,1.5779,1790.6,1790.5,0.78162]
[1745817348286,5.2134,1790.7,1790.4,1.6174]
[1745817348488,5.2134,1790.7,1790.6,0.78161]
[1745817348689,6.921,1790.7,1790.6,0.78161]
[1745817349584,6.1261,1790.7,1790.6,0.78161]
[1745817349779,6.1261,1790.7,1790.6,2.47191]
[1745817351384,5.3096,1790.7,1790.6,2.47191]
[1745817351589,3.2078,1790.8,1790.7,0.78156]
[1745817351790,4.9581,1790.8,1790.7,2.53056]
[1745817353988,4.9581,1790.8,1790.7,0.78156]
[1745817355395,5.73962,1790.8,1790.7,0.78156]
[1745817355586,4.9581,1790.8,1790.7,0.78156]
[1745817357289,5.73962,1790.8,1790.7,0.78156]
[1745817357499,5.73962,1790.8,1790.6,0.78158]
[1745817357796,1.7105,1790.7,1790.6,0.78158]
[1745817360396,1.7105,1790.7,1790.6,2.44808]
[1745817361001,2.49206,1790.7,1790.6,2.44808]
[1745817361182,1.7105,1790.7,1790.6,2.44808]
[1745817361997,2.49206,1790.7,1790.6,2.44808]
[1745817362594,3.98935,1790.8,1790.6,2.44808]
[1745817362798,5.59764,1790.8,1790.6,2.44808]
[1745817363000,5.59764,1790.8,1790.7,1.6521]
[1745817367001,4.8161,1790.8,1790.7,2.43366]
[1745817368403,5.59762,1790.8,1790.7,0.78156]
[1745817369304,4.8161,1790.8,1790.7,0.78156]
[1745817370203,3.2078,1790.8,1790.7,0.78156]
[1745817370591,3.2078,1790.8,1790.7,2.49296]
[1745817371111,0.8417,1791.1,1791.0,0.78143]
[1745817371513,0.8417,1791.1,1791.0,41.58143]
[1745817371800,3.34849,1791.1,1791.0,40.8]
[1745817374104,0.78151,1790.9,1790.6,3.22348]
[1745817374409,4.9338,1790.8,1790.6,3.22348]
[1745817374712,1.7057,1790.7,1790.6,3.22348]
[1745817375106,1.7057,1790.7,1790.6,44.02348]
[1745817375509,1.726,1790.8,1790.7,0.78156]
[1745817375810,3.98926,1791.0,1790.8,0.78152]
[1745817375998,1.6,1790.9,1790.8,0.78152]
[1745817376307,2.38147,1790.9,1790.7,2.48723]